lending/lending_fUSD_20250425
["ID","MTS","AMOUNT","RATE_DAILY","PERIOD"]
[358915699,1745545059567,-500.0,0.00049863,30]
[358915700,1745545059598,-544.83644034,0.00049863,30]
[358915701,1745545059631,-4932.73,0.00049863,30]
[358915702,1745545059664,-500.0,0.00049863,30]
[358915703,1745545059697,-515.60576483,0.00049863,30]
[358915704,1745545059732,-769.43,0.00049863,30]
[358915705,1745545059765,-500.0,0.00049863,30]
[358915706,1745545059802,-500.0,0.00049863,30]
[358915707,1745545059840,-694.5,0.00049863,30]
[358915708,1745545059873,-500.0,0.00049863,30]
[358915709,1745545059905,-500.0,0.00049863,30]
[358915710,1745545059938,-500.0,0.00049863,30]
[358915711,1745545059971,-231.02783209,0.00049863,30]
[358915712,1745545060006,-500.0,0.00049863,30]
[358915713,1745545060041,-858.57,0.00049863,30]
[358915714,1745545060076,-500.0,0.00049863,30]
[358915715,1745545060110,-735.15,0.00049863,30]
[358915716,1745545060369,-916.62,0.00049863,30]
[358915717,1745545060406,-763.88,0.00049863,30]
[358915718,1745545060440,-501.66,0.00049863,30]
[358915719,1745545060474,-727.33,0.00049863,30]
[358915720,1745545060508,-3396.35,0.00049863,30]
[358915721,1745545060541,-875.49,0.00049863,120]
[358915722,1745545060575,-500.0,0.00049863,30]
[358915723,1745545060609,-246.1959372,0.00049863,30]
[358915724,1745545060642,-500.0,0.00049863,30]
[358915725,1745545060675,-500.0,0.00049863,30]
[358915726,1745545060708,-1575.26,0.00049863,30]
[358915727,1745545060741,-3022.03,0.00049863,30]
[358915728,1745545060775,-642.74932936,0.00049863,30]
[358915729,1745545060807,-500.0,0.00049863,30]
[358915730,1745545060845,-500.0,0.00049863,30]
[358915731,1745545060881,-500.0,0.00049863,30]
[358915732,1745545060917,-572.68482644,0.00049863,30]
[358915733,1745545060948,-500.0,0.00049863,30]
[358915734,1745545060983,-719.69,0.00049863,30]
[358915735,1745545061018,-1502.96,0.00049863,30]
[358915736,1745545061052,-742.58,0.00049863,30]
[358915737,1745545061087,-500.0,0.00049863,30]
[358915738,1745545061122,-500.0,0.00049863,30]
[358915739,1745545061159,-695.81,0.00049863,30]
[358915740,1745545061194,-532.81757939,0.00049863,30]
[358915741,1745545061228,-500.0,0.00049863,30]
[358915742,1745545061263,-500.0,0.00049863,30]
[358915743,1745545061298,-500.0,0.00049863,30]
[358915744,1745545061331,-500.0,0.00049863,30]
[358915745,1745545061367,-663.3,0.00049863,30]
[358915746,1745545061401,-678.67,0.00049863,30]
[358915747,1745545061434,-618.78,0.00049863,30]
[358915748,1745545061471,-764.82,0.00049863,30]
[358915749,1745545061505,-500.0,0.00049863,30]
[358915750,1745545061539,-493.75619018,0.00049863,30]
[358915751,1745545061572,-1442.41,0.00049863,30]
[358915752,1745545061606,-2108.6,0.00049863,30]
[358915753,1745545061641,-500.0,0.00049863,30]
[358915754,1745545061674,-335.39836379,0.00049863,30]
[358915755,1745545061707,-873.69,0.00049863,30]
[358915756,1745545061740,-599.18,0.00049863,30]
[358915757,1745545061774,-3086.13,0.00049863,30]
[358915758,1745545061807,-500.0,0.00049863,30]
[358915759,1745545061843,-1593.79,0.00049863,30]
[358915760,1745545061877,-2263.32,0.00049863,30]
[358915761,1745545061909,-500.0,0.00049863,30]
[358915762,1745545061942,-2700.89,0.00049863,30]
[358915763,1745545061974,-500.0,0.00049863,30]
[358915764,1745545062006,-500.0,0.00049863,30]
[358915765,1745545062038,-795.15,0.00049863,30]
[358915766,1745545062070,-500.0,0.00049863,30]
[358915767,1745545062103,-522.13,0.00049863,30]
[358915768,1745545062142,-500.0,0.00049863,30]
[358915769,1745545062174,-500.0,0.00049863,30]
[358915770,1745545062206,-1414.77,0.00049863,30]
[358915771,1745545062238,-500.0,0.00049863,30]
[358915772,1745545062271,-1268.35,0.00049863,30]
[358915773,1745545062304,-1107.8,0.00049863,30]
[358915774,1745545062336,-550.15190408,0.00049863,30]
[358915775,1745545062368,-2000.0,0.00049863,120]
[358915776,1745545062401,-500.0,0.00049863,30]
[358915777,1745545062434,-879.02,0.00049863,30]
[358915778,1745545062469,-818.01,0.00049863,30]
[358915779,1745545062505,-1065.05,0.00049863,30]
[358915780,1745545062540,-1598.1,0.00049863,30]
[358915781,1745545062574,-1000.0,0.00049863,30]
[358915782,1745545062608,-4254.61,0.00049863,30]
[358915783,1745545062643,-500.0,0.00049863,30]
[358915784,1745545062678,-500.0,0.00049863,30]
[358915785,1745545062714,-500.0,0.00049863,30]
[358915786,1745545062749,-500.0,0.00049863,30]
[358915787,1745545062784,-500.0,0.00049863,30]
[358915788,1745545062819,-2090.38,0.00049863,30]
[358915789,1745545062852,-858.84,0.00049863,30]
[358915790,1745545062886,-752.9,0.00049863,30]
[358915791,1745545062920,-765.14,0.00049863,30]
[358915792,1745545062951,-500.0,0.00049863,30]
[358915793,1745545062983,-500.0,0.00049863,30]
[358915794,1745545063016,-1773.32,0.00049863,30]
[358915795,1745545063047,-389.41034668,0.00049863,30]
[358915796,1745545063079,-1111.7,0.00049863,30]
[358915797,1745545063111,-1976.47,0.00049863,30]
[358915798,1745545063145,-500.0,0.00049863,30]
[358915799,1745545063179,-2108.59,0.00049863,30]
[358915800,1745545063213,-500.0,0.00049863,30]
[358915801,1745545063247,-1416.48,0.00049863,30]
[358915802,1745545063280,-500.0,0.00049863,30]
[358915803,1745545063315,-509.56,0.00049863,30]
[358915804,1745545063352,-700.32,0.00049863,30]
[358915805,1745545063388,-924.91,0.00049863,30]
[358915806,1745545063423,-690.7,0.00049863,30]
[358915807,1745545063459,-500.0,0.00049863,30]
[358915808,1745545063495,-500.0,0.00049863,30]
[358915809,1745545063532,-1140.87,0.00049863,30]
[358915810,1745545063569,-500.0,0.00049863,30]
[358915811,1745545063607,-500.0,0.00049863,30]
[358915812,1745545063647,-7822.1,0.00049863,30]
[358915813,1745545063683,-500.0,0.00049863,30]
[358915814,1745545063717,-871.81,0.00049863,30]
[358915815,1745545063751,-657.75,0.00049863,30]
[358915816,1745545063784,-500.0,0.00049863,30]
[358915817,1745545063822,-1613.27,0.00049863,30]
[358915818,1745545063854,-500.0,0.00049863,30]
[358915819,1745545063889,-415.51,0.00049863,30]
[358915820,1745545064156,-500.0,0.00049863,30]
[358915821,1745545064195,-8595.77,0.00049863,30]
[358915822,1745545064231,-500.0,0.00049863,30]
[358915823,1745545064266,-806.86,0.00049863,30]
[358915824,1745545064300,-828.35,0.00049863,30]
[358915825,1745545064333,-500.0,0.00049863,30]
[358915826,1745545064367,-500.0,0.00049863,30]
[358915827,1745545064399,-1103.09,0.00049863,30]
[358915828,1745545064432,-942.33,0.00049863,30]
[358915829,1745545064465,-514.58258995,0.00049863,30]
[358915830,1745545064498,-500.0,0.00049863,30]
[358915831,1745545064532,-1310.31,0.00049863,30]
[358915832,1745545064565,-1476.33,0.00049863,30]
[358915833,1745545064599,-1855.1,0.00049863,30]
[358915834,1745545064634,-209.64502901,0.00049863,30]
[358915835,1745545064668,-2687.81,0.00049863,30]
[358915836,1745545064702,-336.4605368,0.00049863,30]
[358915837,1745545064737,-500.0,0.00049863,30]
[358915838,1745545064771,-1456.2,0.00049863,30]
[358915839,1745545064804,-1289.56,0.00049863,30]
[358915840,1745545064841,-500.0,0.00049863,30]
[358915841,1745545064875,-500.0,0.00049863,30]
[358915842,1745545064910,-1901.29,0.00049863,30]
[358915843,1745545064946,-500.0,0.00049863,30]
[358915844,1745545064981,-827.14,0.00049863,30]
[358915845,1745545065017,-500.0,0.00049863,30]
[358915846,1745545065053,-500.0,0.00049863,30]
[358915847,1745545065090,-500.0,0.00049863,30]
[358915848,1745545065126,-792.6,0.00049863,30]
[358915849,1745545065161,-500.0,0.00049863,30]
[358915850,1745545065195,-1103.01,0.00049863,30]
[358915851,1745545065230,-546.36,0.00049863,30]
[358915852,1745545065265,-1780.52,0.00049863,30]
[358915853,1745545065299,-500.0,0.00049863,30]
[358915854,1745545065334,-253.58459824,0.00049863,30]
[358915855,1745545065371,-500.0,0.00049863,30]
[358915856,1745545065405,-1012.63,0.00049863,30]
[358915857,1745545065441,-2937.58,0.00049863,30]
[358915858,1745545065477,-500.0,0.00049863,30]
[358915859,1745545065512,-500.0,0.00049863,30]
[358915860,1745545065547,-541.09,0.00049863,30]
[358915861,1745545065583,-1812.49,0.00049863,30]
[358915862,1745545065620,-500.0,0.00049863,30]
[358915863,1745545065654,-500.0,0.00049863,30]
[358915864,1745545065689,-2325.32,0.00049863,30]
[358915865,1745545065724,-500.0,0.00049863,30]
[358915866,1745545065759,-2645.58,0.00049863,30]
[358915867,1745545065794,-500.0,0.00049863,30]
[358915868,1745545065827,-569.06230335,0.00049863,30]
[358915869,1745545065864,-500.0,0.00049863,30]
[358915870,1745545065899,-500.0,0.00049863,30]
[358915871,1745545065935,-500.0,0.00049863,30]
[358915872,1745545065970,-2124.79,0.00049863,30]
[358915873,1745545066005,-1616.8,0.00049863,30]
[358915874,1745545066043,-1776.77,0.00049863,30]
[358915875,1745545066078,-207.61168264,0.00049863,30]
[358915876,1745545066117,-661.52,0.00049863,30]
[358915877,1745545066154,-500.0,0.00049863,30]
[358915878,1745545066189,-620.23,0.00049863,30]
[358915879,1745545066225,-1156.82,0.00049863,30]
[358915880,1745545066258,-2205.24,0.00049863,30]
[358915881,1745545066291,-781.78,0.00049863,30]
[358915882,1745545066324,-802.61,0.00049863,30]
[358915883,1745545066357,-500.0,0.00049863,30]
[358915884,1745545066391,-500.0,0.00049863,30]
[358915885,1745545066424,-3457.54,0.00049863,30]
[358915886,1745545066457,-515.47,0.00049863,30]
[358915887,1745545066490,-553.68,0.00049863,30]
[358915888,1745545066524,-943.43,0.00049863,30]
[358915889,1745545066557,-500.0,0.00049863,30]
[358915890,1745545066590,-990.31,0.00049863,30]
[358915891,1745545066624,-610.47,0.00049863,30]
[358915892,1745545066658,-2070.09,0.00049863,30]
[358915893,1745545066691,-524.25518927,0.00049863,30]
[358915894,1745545066727,-500.0,0.00049863,30]
[358915895,1745545066760,-1324.47,0.00049863,30]
[358915896,1745545066795,-500.0,0.00049863,30]
[358915897,1745545066828,-500.0,0.00049863,30]
[358915898,1745545066862,-500.0,0.00049863,30]
[358915899,1745545066899,-3419.03,0.00049863,30]
[358915900,1745545066934,-3680.59,0.00049863,30]
[358915901,1745545066967,-500.0,0.00049863,30]
[358915902,1745545067000,-500.0,0.00049863,30]
[358915903,1745545067035,-982.56,0.00049863,30]
[358915904,1745545067069,-350.0,0.00049863,30]
[358915905,1745545067102,-500.0,0.00049863,30]
[358915906,1745545067136,-6091.61,0.00049863,30]
[358915907,1745545067169,-500.0,0.00049863,30]
[358915908,1745545067201,-500.0,0.00049863,30]
[358915909,1745545067234,-500.0,0.00049863,30]
[358915910,1745545067268,-1042.75,0.00049863,30]
[358915911,1745545067300,-755.73,0.00049863,30]
[358915912,1745545067333,-2124.75,0.00049863,30]
[358915913,1745545067366,-1207.25,0.00049863,30]
[358915914,1745545067400,-1232.59,0.00049863,30]
[358915915,1745545067432,-500.0,0.00049863,30]
[358915916,1745545067470,-500.0,0.00049863,30]
[358915917,1745545067506,-500.0,0.00049863,30]
[358915918,1745545067541,-767.48,0.00049863,30]
[358915919,1745545067577,-500.0,0.00049863,30]
[358915920,1745545067611,-787.17,0.00049863,30]
[358915921,1745545067646,-500.0,0.00049863,30]
[358915922,1745545067681,-1581.75,0.00049863,30]
[358915923,1745545067714,-500.0,0.00049863,30]
[358915924,1745545068012,-500.0,0.00049863,30]
[358915925,1745545068052,-1343.63,0.00049863,30]
[358915926,1745545068089,-2907.59,0.00049863,30]
[358915927,1745545068126,-895.82,0.00049863,30]
[358915928,1745545068163,-2590.97,0.00049863,30]
[358915929,1745545068198,-500.0,0.00049863,30]
[358915930,1745545068232,-500.0,0.00049863,30]
[358915931,1745545068267,-1122.52,0.00049863,30]
[358915932,1745545068302,-500.0,0.00049863,30]
[358915933,1745545068338,-543.24,0.00049863,30]
[358915934,1745545068376,-4014.71,0.00049863,30]
[358915935,1745545068414,-500.0,0.00049863,30]
[358915936,1745545068451,-570.19557325,0.00049863,30]
[358915937,1745545068490,-550.52538769,0.00049863,30]
[358915938,1745545068529,-500.0,0.00049863,30]
[358915939,1745545068568,-500.84,0.00049863,30]
[358915940,1745545068606,-925.93,0.00049863,30]
[358915941,1745545068643,-500.0,0.00049863,30]
[358915942,1745545068681,-500.0,0.00049863,30]
[358915943,1745545068718,-500.0,0.00049863,30]
[358915944,1745545068757,-500.0,0.00049863,30]
[358915945,1745545068797,-500.0,0.00049863,30]
[358915946,1745545068835,-901.52,0.00049863,30]
[358915947,1745545068872,-644.62,0.00049863,30]
[358915948,1745545068909,-1008.41,0.00049863,30]
[358915949,1745545068947,-2619.2,0.00049863,30]
[358915950,1745545068983,-1102.75,0.00049863,30]
[358915951,1745545069021,-500.0,0.00049863,30]
[358915952,1745545069057,-1503.08,0.00049863,30]
[358915953,1745545069095,-500.0,0.00049863,30]
[358915954,1745545069133,-817.1,0.00049863,30]
[358915955,1745545069169,-1147.58,0.00049863,30]
[358915956,1745545069205,-1000.0,0.00049863,120]
[358915957,1745545069239,-500.0,0.00049863,30]
[358915958,1745545069273,-4526.86,0.00049863,30]
[358915959,1745545069307,-1065.37,0.00049863,30]
[358915960,1745545069343,-508.6,0.00049863,30]
[358915961,1745545069377,-740.34,0.00049863,30]
[358915962,1745545069413,-1291.23,0.00049863,30]
[358915963,1745545069448,-500.0,0.00049863,30]
[358915964,1745545069484,-500.0,0.00049863,30]
[358915965,1745545069519,-500.0,0.00049863,30]
[358915966,1745545069554,-500.0,0.00049863,30]
[358915967,1745545069589,-593.9,0.00049863,30]
[358915968,1745545069625,-500.0,0.00049863,30]
[358915969,1745545069660,-3944.13,0.00049863,30]
[358915970,1745545069695,-500.0,0.00049863,30]
[358915971,1745545069729,-3738.13,0.00049863,30]
[358915972,1745545069762,-500.0,0.00049863,30]
[358915973,1745545069794,-814.96,0.00049863,30]
[358915974,1745545069829,-500.0,0.00049863,30]
[358915975,1745545069864,-500.0,0.00049863,30]
[358915976,1745545069899,-3013.74,0.00049863,30]
[358915977,1745545069933,-500.0,0.00049863,30]
[358915978,1745545069967,-500.0,0.00049863,30]
[358915979,1745545070002,-1940.43,0.00049863,30]
[358915980,1745545070034,-505.96,0.00049863,30]
[358915981,1745545070067,-802.86,0.00049863,30]
[358915982,1745545070100,-500.0,0.00049863,30]
[358915983,1745545070134,-831.63,0.00049863,30]
[358915984,1745545070169,-3690.41,0.00049863,30]
[358915985,1745545070204,-2007.82,0.00049863,30]
[358915986,1745545070237,-500.0,0.00049863,30]
[358915987,1745545070270,-500.0,0.00049863,30]
[358915988,1745545070303,-2561.77,0.00049863,30]
[358915989,1745545070338,-500.0,0.00049863,30]
[358915990,1745545070374,-500.0,0.00049863,30]
[358915991,1745545070409,-500.0,0.00049863,30]
[358915992,1745545070443,-500.0,0.00049863,30]
[358915993,1745545070479,-500.0,0.00049863,30]
[358915994,1745545070514,-500.0,0.00049863,30]
[358915995,1745545070550,-1709.19,0.00049863,30]
[358915996,1745545070585,-625.02,0.00049863,30]
[358915997,1745545070618,-500.0,0.00049863,30]
[358915998,1745545070652,-641.42,0.00049863,30]
[358915999,1745545070688,-625.36,0.00049863,30]
[358916000,1745545070722,-500.0,0.00049863,30]
[358916001,1745545070756,-500.0,0.00049863,30]
[358916002,1745545070790,-661.96,0.00049863,30]
[358916003,1745545070825,-500.0,0.00049863,30]
[358916004,1745545070857,-500.0,0.00049863,30]
[358916005,1745545070892,-2106.95,0.00049863,30]
[358916006,1745545070927,-891.31,0.00049863,30]
[358916007,1745545070960,-500.0,0.00049863,30]
[358916008,1745545070993,-500.0,0.00049863,30]
[358916009,1745545071026,-500.0,0.00049863,30]
[358916010,1745545071060,-500.0,0.00049863,30]
[358916011,1745545071094,-500.0,0.00049863,30]
[358916012,1745545071128,-500.0,0.00049863,30]
[358916013,1745545071162,-2215.55,0.00049863,30]
[358916014,1745545071197,-612.26,0.00049863,30]
[358916015,1745545071231,-554.66254026,0.00049863,30]
[358916016,1745545071271,-1337.84,0.00049863,30]
[358916017,1745545071306,-10709.64,0.00049863,30]
[358916018,1745545071339,-500.0,0.00049863,30]
[358916019,1745545071373,-500.0,0.00049863,30]
[358916020,1745545071406,-500.0,0.00049863,30]
[358916021,1745545071440,-500.0,0.00049863,30]
[358916022,1745545071474,-500.0,0.00049863,30]
[358916023,1745545071509,-1976.56,0.00049863,30]
[358916024,1745545071543,-653.33,0.00049863,30]
[358916025,1745545071578,-596.77,0.00049863,30]
[358916026,1745545071612,-500.0,0.00049863,30]
[358916027,1745545071648,-609.62744073,0.00049863,30]
[358916028,1745545071907,-1134.2,0.00049863,30]
[358916029,1745545071946,-500.0,0.00049863,30]
[358916030,1745545071983,-500.0,0.00049863,30]
[358916031,1745545072018,-500.0,0.00049863,30]
[358916032,1745545072052,-1112.33,0.00049863,30]
[358916033,1745545072089,-1448.03,0.00049863,30]
[358916034,1745545072126,-500.0,0.00049863,30]
[358916035,1745545072163,-841.68,0.00049863,30]
[358916036,1745545072200,-823.66,0.00049863,30]
[358916037,1745545072233,-500.0,0.00049863,30]
[358916038,1745545072267,-300.0,0.00049863,30]
[358916039,1745545072302,-500.0,0.00049863,30]
[358916040,1745545072338,-971.58,0.00049863,30]
[358916041,1745545072373,-500.0,0.00049863,30]
[358916042,1745545072408,-1808.75,0.00049863,30]
[358916043,1745545072442,-500.0,0.00049863,30]
[358916044,1745545072476,-990.82,0.00049863,30]
[358916045,1745545072509,-500.0,0.00049863,30]
[358916046,1745545072544,-500.0,0.00049863,30]
[358916047,1745545072579,-1821.84,0.00049863,30]
[358916048,1745545072614,-1960.52,0.00049863,30]
[358916049,1745545072649,-500.0,0.00049863,30]
[358916050,1745545072683,-1313.12,0.00049863,30]
[358916051,1745545072717,-500.0,0.00049863,30]
[358916052,1745545072752,-500.0,0.00049863,30]
[358916053,1745545072786,-500.0,0.00049863,30]
[358916054,1745545072821,-500.0,0.00049863,30]
[358916055,1745545072856,-553.12,0.00049863,30]
[358916056,1745545072894,-3715.78,0.00049863,30]
[358916057,1745545072931,-500.0,0.00049863,30]
[358916058,1745545072965,-672.15,0.00049863,30]
[358916059,1745545073000,-3817.81,0.00049863,30]
[358916060,1745545073036,-500.0,0.00049863,30]
[358916061,1745545073070,-1880.56,0.00049863,30]
[358916062,1745545073103,-522.25502873,0.00049863,30]
[358916063,1745545073136,-514.56342934,0.00049863,30]
[358916064,1745545073169,-500.0,0.00049863,30]
[358916065,1745545073202,-500.0,0.00049863,30]
[358916066,1745545073234,-893.18,0.00049863,30]
[358916067,1745545073266,-1498.23,0.00049863,30]
[358916068,1745545073297,-500.0,0.00049863,30]
[358916069,1745545073329,-503.97079357,0.00049863,30]
[358916070,1745545073362,-500.0,0.00049863,30]
[358916071,1745545073396,-500.0,0.00049863,30]
[358916072,1745545073428,-500.0,0.00049863,30]
[358916073,1745545073460,-500.0,0.00049863,30]
[358916074,1745545073493,-500.0,0.00049863,30]
[358916075,1745545073528,-620.16,0.00049863,30]
[358916076,1745545073564,-500.0,0.00049863,30]
[358916077,1745545073600,-500.0,0.00049863,30]
[358916078,1745545073635,-500.0,0.00049863,30]
[358916079,1745545073671,-500.0,0.00049863,30]
[358916080,1745545073705,-500.0,0.00049863,30]
[358916081,1745545073740,-608.18,0.00049863,30]
[358916082,1745545073775,-1073.32,0.00049863,30]
[358916083,1745545073810,-1008.53,0.00049863,30]
[358916084,1745545073848,-1524.36,0.00049863,30]
[358916085,1745545073884,-500.0,0.00049863,30]
[358916086,1745545073924,-1015.49,0.00049863,30]
[358916087,1745545073959,-557.66,0.00049863,30]
[358916088,1745545073995,-558.64,0.00049863,30]
[358916089,1745545074029,-966.47,0.00049863,30]
[358916090,1745545074063,-500.0,0.00049863,30]
[358916091,1745545074097,-500.0,0.00049863,30]
[358916092,1745545074133,-692.33,0.00049863,30]
[358916093,1745545074170,-500.0,0.00049863,30]
[358916094,1745545074208,-1717.47,0.00049863,30]
[358916095,1745545074244,-2016.33,0.00049863,30]
[358916096,1745545074280,-500.0,0.00049863,30]
[358916097,1745545074317,-3170.03,0.00049863,30]
[358916098,1745545074354,-2357.56,0.00049863,30]
[358916099,1745545074391,-500.0,0.00049863,30]
[358916100,1745545074429,-1600.56,0.00049863,30]
[358916101,1745545074465,-936.5,0.00049863,30]
[358916102,1745545074501,-500.0,0.00049863,30]
[358916103,1745545074537,-2103.74,0.00049863,30]
[358916104,1745545074572,-500.0,0.00049863,30]
[358916105,1745545074607,-500.0,0.00049863,30]
[358916106,1745545074643,-1286.01,0.00049863,30]
[358916107,1745545074679,-988.18,0.00049863,30]
[358916108,1745545074716,-500.0,0.00049863,30]
[358916109,1745545074751,-500.0,0.00049863,30]
[358916110,1745545074786,-500.0,0.00049863,30]
[358916111,1745545074820,-500.0,0.00049863,30]
[358916112,1745545074854,-1226.29,0.00049863,30]
[358916113,1745545074889,-500.0,0.00049863,30]
[358916114,1745545074925,-500.0,0.00049863,30]
[358916115,1745545074958,-161.35701243,0.00049863,30]
[358916116,1745545074993,-664.11,0.00049863,30]
[358916117,1745545075028,-500.0,0.00049863,30]
[358916118,1745545075062,-1286.96,0.00049863,30]
[358916119,1745545075096,-722.24,0.00049863,30]
[358916120,1745545075130,-500.0,0.00049863,30]
[358916121,1745545075165,-500.0,0.00049863,30]
[358916122,1745545075199,-500.0,0.00049863,30]
[358916123,1745545075235,-971.1,0.00049863,30]
[358916124,1745545075268,-557.106122,0.00049863,30]
[358916125,1745545075302,-796.66,0.00049863,30]
[358916126,1745545075335,-500.0,0.00049863,30]
[358916127,1745545075368,-500.0,0.00049863,30]
[358916128,1745545075401,-1402.77,0.00049863,30]
[358916129,1745545075433,-500.0,0.00049863,30]
[358916130,1745545075467,-500.0,0.00049863,30]
[358916131,1745545075501,-500.0,0.00049863,30]
[358916132,1745545075747,-423.8387133,0.00049863,30]
[358916133,1745545075786,-551.38411433,0.00049863,30]
[358916134,1745545075826,-41511.09,0.00049863,30]
[358916135,1745545075865,-2669.76,0.00049863,30]
[358916136,1745545075904,-1999.03,0.00049863,30]
[358916137,1745545075941,-500.0,0.00049863,30]
[358916138,1745545075978,-533.3,0.00049863,30]
[358916139,1745545076015,-500.0,0.00049863,30]
[358916140,1745545076052,-500.0,0.00049863,30]
[358916141,1745545076090,-500.0,0.00049863,30]
[358916142,1745545076130,-1636.56,0.00049863,30]
[358916143,1745545076170,-500.0,0.00049863,30]
[358916144,1745545076209,-500.0,0.00049863,30]
[358916145,1745545076247,-684.27,0.00049863,30]
[358916146,1745545076283,-500.0,0.00049863,30]
[358916147,1745545076319,-500.0,0.00049863,30]
[358916148,1745545076355,-500.0,0.00049863,30]
[358916149,1745545076389,-20814.49,0.00049863,30]
[358916150,1745545076424,-500.0,0.00049863,30]
[358916151,1745545076458,-686.42,0.00049863,30]
[358916152,1745545076494,-500.0,0.00049863,30]
[358916153,1745545076532,-500.0,0.00049863,30]
[358916154,1745545076570,-629.42205961,0.00049876,31]
[358916155,1745545076608,-435.0,0.00049886,70]
[358916156,1745545076646,-3000.0,0.0004989,40]
[358916157,1745545076683,-151.48850641,0.000499,120]
[358916158,1745545076720,-151.48850641,0.000499,120]
[358916159,1745545076755,-151.48850641,0.000499,120]
[358916160,1745545076791,-151.48850641,0.000499,120]
[358916161,1745545076830,-151.48850641,0.000499,120]
[358916162,1745545076870,-151.48850641,0.000499,120]
[358916163,1745545076907,-500.0,0.00049918,60]
[358916164,1745545076943,-5000.0,0.0004993,40]
[358916165,1745545076977,-3000.0,0.0004999,40]
[358916166,1745545077012,-1000.0,0.00049998,120]
[358916167,1745545077047,-1000.0,0.00049998,120]
[358916168,1745545077083,-1000.0,0.00049998,120]
[358916169,1745545077117,-1000.0,0.00049998,30]
[358916170,1745545077153,-1000.0,0.00049998,30]
[358916171,1745545077189,-1000.0,0.00049998,30]
[358916172,1745545077224,-1000.0,0.00049998,30]
[358916173,1745545077260,-1000.0,0.00049999,120]
[358916174,1745545077298,-50000.0,0.0005,50]
[358916175,1745545077333,-1000.0,0.0005,120]
[358916176,1745545077369,-300.0,0.0005,120]
[358916177,1745545077406,-6104.11077559,0.0005,120]
[358916178,1745545077441,-2000.0,0.0005,120]
[358916179,1745545077477,-500.0,0.0005,30]
[358916180,1745545077514,-500.0,0.0005,30]
[358916181,1745545077553,-3000.0,0.0005,30]
[358916182,1745545077590,-1000.0,0.0005,120]
[358916183,1745545077628,-3000.0,0.0005,30]
[358916184,1745545077665,-1507.51,0.0005,30]
[358916185,1745545077700,-1548.95,0.0005,30]
[358916186,1745545077737,-1800.0,0.0005,51]
[358916187,1745545077771,-388.1260184,0.0005,120]
[358916188,1745545077805,-3000.0,0.0005,120]
[358916189,1745545077839,-158.92774648,0.0005,30]
[358916190,1745545077872,-1624.46511973,0.0005,120]
[358916191,1745545077906,-577.80178322,0.0005,30]
[358916192,1745545077939,-1152.60957875,0.0005,90]
[358916193,1745545077973,-1190.79,0.0005,120]
[358916194,1745545078008,-500.0,0.0005,120]
[358916195,1745545078044,-200.0,0.0005,91]
[358916196,1745545078080,-200.0,0.0005,91]
[358916197,1745545078117,-471.7,0.0005,30]
[358916198,1745545078152,-606.38,0.0005,30]